[Event "3rd FIDE WCCC Rapid U12 2019"]
[Site "Minsk"]
[Date "2019.08.17"]
[Round "6.2"]
[White "Khubukshanov, Erdem"]
[Black "Strybuk, Artsiom I"]
[Result "0-1"]
[ECO "C50"]
[WhiteElo "2257"]
[BlackElo "2200"]
[Annotator "ChessBase"]
[PlyCount "70"]
[EventDate "2019.08.16"]
[EventType "swiss"]
[EventCountry "BLR"]
[SourceTitle "playchess.com"]
[Source "ChessBase"]
[SourceQuality "1"]
[TimeControl "600+5"]

1. e4 {[%emt 0:00:00]} e5 {[%emt 0:00:00]} 2. Nf3 {[%emt 0:00:00]} Nc6 {[%emt 0:00:00]} 3. Bc4 {[%emt 0:00:00]} Bc5 {[%emt 0:00:00]} 4. O-O {[%emt 0:00:00]} Nf6 {[%emt 0:00:00]} 5. d3 {[%emt 0:00:00]} d6 {[%emt 0:00:02]} 6. a4 {[%emt 0:00:02]} O-O {[%emt 0:00:34]} 7. c3 {[%emt 0:00:03]} a5 {[%emt 0:00:02]} 8. Na3 {[%emt 0:00:06]} h6 {[%emt 0:00:11]} 9. Nc2 {[%emt 0:00:08]} Ne7 {[%emt 0:00:22]} 10. Re1 {[%emt 0:00:20]} Ng6 {[%emt 0:00:11]} 11. Ne3 {[%emt 0:00:51]} c6 {[%emt 0:00:11]} 12. Ba2 {[%emt 0:00:46]} Bb6 {[%emt 0:00:13]} 13. c4 {[%emt 0:00:30]} Nf4 {[%emt 0:01:38]} 14. g3 {[%emt 0:00:11]} Ne6 {[%emt 0:00:08]} 15. Nf5 {[%emt 0:00:04]} Nc5 {[%emt 0:00:26]} 16. Bb1 {[%emt 0:00:35]} Bxf5 {[%emt 0:00:06]} 17. exf5 {[%emt 0:00:02]} Re8 {[%emt 0:00:12]} 18. Be3 {[%emt 0:00:16]} Ng4 {[%emt 0:01:08]} 19. Kg2 {[%emt 0:02:12]} Nxe3+ {[%emt 0:00:59]} 20. Rxe3 {[%emt 0:00:02]} Qf6 {[%emt 0:00:12]} 21. Nh4 {[%emt 0:00:09]} d5 {[%emt 0:00:36]} 22. cxd5 {[%emt 0:02:32]} cxd5 {[%emt 0:00:01]} 23. Ra3 {[%emt 0:00:02]} e4 {[%emt 0:00:37]} 24. dxe4 {[%emt 0:00:03]} Nxe4 {[%emt 0:00:20]} 25. Rf3 {[%emt 0:00:27]} Nxf2 {[%emt 0:00:37]} 26. Qf1 {[%emt 0:02:40]} Ng4 {[%emt 0:00:06]} 27. Qc1 {[%emt 0:00:04]} Re2+ {[%emt 0:00:29]} 28. Kh3 {[%emt 0:00:01]} h5 {[%emt 0:00:48]} 29. Ng2 {[%emt 0:00:05]} Nf2+ {[%emt 0:00:04]} 30. Rxf2 {[%emt 0:00:03]} Rxf2 {[%emt 0:00:00]} 31. Rb3 {[%emt 0:00:04]} Re8 {[%emt 0:00:37]} 32. Nf4 {[%emt 0:00:03]} Qg5 {[%emt 0:00:26]} 33. Qd1 {[%emt 0:00:00]} Bc7 {[%emt 0:00:28]} 34. Nxd5 {[%emt 0:00:18]} Bb8 {[%emt 0:00:02]} 35. Rxb7 {[%emt 0:00:05]} Rxh2+ {[%emt 0:00:05]} 0-1

[Event "3rd FIDE WCCC Rapid U12 2019"]
[Site "Minsk"]
[Date "2019.08.17"]
[Round "6.3"]
[White "Mochalov, Dmitriy"]
[Black "Chyndygyr, Tamerlan"]
[Result "1/2-1/2"]
[ECO "A05"]
[WhiteElo "1852"]
[BlackElo "1984"]
[Annotator "NA"]
[PlyCount "84"]
[EventDate "2019.08.16"]
[EventType "swiss"]
[EventCountry "BLR"]
[SourceTitle "playchess.com"]
[Source "ChessBase"]
[SourceQuality "1"]
[TimeControl "600+5"]

1. Nf3 {[%emt 0:00:06]} Nf6 {[%emt 0:00:00]} 2. g3 {[%emt 0:00:02]} g6 {[%emt 0:00:00]} 3. Bg2 {[%emt 0:00:02]} Bg7 {[%emt 0:00:00]} 4. O-O {[%emt 0:00:02]} O-O {[%emt 0:00:00]} 5. d3 {[%emt 0:00:02]} d6 {[%emt 0:00:02]} 6. Nbd2 {[%emt 0:00:02]} Nbd7 {[%emt 0:00:03]} 7. e4 {[%emt 0:00:02]} c5 {[%emt 0:00:02]} 8. a4 {[%emt 0:00:08]} Rb8 {[%emt 0:00:12]} 9. Nc4 {[%emt 0:00:07]} b6 {[%emt 0:00:01]} 10. Qe2 {[%emt 0:00:23]} Ng4 {[%emt 0:00:28]} 11. h3 {[%emt 0:00:05]} Nge5 {[%emt 0:00:04]} 12. Nfxe5 {[%emt 0:00:08]} Nxe5 {[%emt 0:00:01]} 13. Nxe5 Bxe5 {[%emt 0:00:02]} 14. Bh6 {[%emt 0:00:03]} Bg7 {[%emt 0:00:07]} 15. Bxg7 {[%emt 0:00:02]} Kxg7 {[%emt 0:00:01]} 16. f4 {[%emt 0:00:08]} b5 {[%emt 0:00:09]} 17. axb5 {[%emt 0:00:27]} Rxb5 {[%emt 0:00:02]} 18. b3 {[%emt 0:00:13]} a5 {[%emt 0:00:11]} 19. f5 {[%emt 0:00:10]} Qb6 {[%emt 0:00:32]} 20. Kh2 {[%emt 0:00:06]} Rb4 {[%emt 0:00:05]} 21. Qe3 {[%emt 0:00:29]} Bd7 {[%emt 0:00:37]} 22. g4 {[%emt 0:02:29]} f6 {[%emt 0:00:57]} 23. g5 {[%emt 0:01:59]} a4 {[%emt 0:00:16]} 24. bxa4 {[%emt 0:00:06]} Rxa4 25. Rxa4 {[%emt 0:00:01]} Bxa4 {[%emt 0:00:03]} 26. fxg6 {[%emt 0:00:07]} hxg6 {[%emt 0:00:02]} 27. gxf6+ {[%emt 0:00:05]} exf6 {[%emt 0:00:08]} 28. c3 {[%emt 0:00:06]} Qc7 {[%emt 0:00:21]} 29. Qg3 {[%emt 0:00:11]} Qe7 {[%emt 0:00:32]} 30. d4 cxd4 {[%emt 0:00:10]} 31. cxd4 {[%emt 0:00:11]} Rb8 {[%emt 0:00:02]} 32. Qa3 {[%emt 0:00:34]} Be8 {[%emt 0:01:10]} 33. Re1 {[%emt 0:00:36]} Qc7 {[%emt 0:00:32]} 34. Rc1 {[%emt 0:00:44]} Qb6 {[%emt 0:00:04]} 35. Qc3 {[%emt 0:00:11]} Bf7 {[%emt 0:01:00]} 36. e5 {[%emt 0:00:41]} dxe5 {[%emt 0:02:32]} 37. dxe5 {[%emt 0:00:01]} Re8 {[%emt 0:00:02]} 38. exf6+ {[%emt 0:00:07]} Qxf6 {[%emt 0:00:05]} 39. Qxf6+ {[%emt 0:00:04]} Kxf6 {[%emt 0:00:02]} 40. Rc6+ {[%emt 0:00:07]} Re6 {[%emt 0:00:06]} 41. Rxe6+ {[%emt 0:00:02]} Bxe6 {[%emt 0:00:02]} 42. Kg3 {[%emt 0:00:02]} Bxh3 {[%emt 0:00:02]} 1/2-1/2

[Event "3rd FIDE WCCC Rapid U12 2019"]
[Site "Minsk"]
[Date "2019.08.17"]
[Round "6.4"]
[White "Pidluznij, Gleb"]
[Black "Yatchenko, Leonid"]
[Result "1-0"]
[ECO "A64"]
[WhiteElo "1947"]
[BlackElo "1587"]
[Annotator "NA"]
[PlyCount "123"]
[EventDate "2019.08.16"]
[EventType "swiss"]
[EventCountry "BLR"]
[SourceTitle "playchess.com"]
[Source "ChessBase"]
[SourceQuality "1"]
[TimeControl "600+5"]

1. d4 {[%emt 0:00:00]} Nf6 {[%emt 0:00:00]} 2. Nf3 {[%emt 0:00:14]} c5 {[%emt 0:00:00]} 3. d5 {[%emt 0:00:36]} e6 {[%emt 0:00:02]} 4. c4 {[%emt 0:00:21]} exd5 {[%emt 0:00:03]} 5. cxd5 {[%emt 0:00:01]} d6 {[%emt 0:00:04]} 6. Nc3 {[%emt 0:00:02]} g6 {[%emt 0:00:02]} 7. g3 {[%emt 0:00:30]} Bg7 {[%emt 0:00:02]} 8. Bg2 {[%emt 0:00:01]} O-O {[%emt 0:00:03]} 9. O-O {[%emt 0:00:02]} a6 {[%emt 0:00:01]} 10. a4 {[%emt 0:00:11]} Re8 {[%emt 0:00:06]} 11. Nd2 {[%emt 0:00:15]} Nbd7 {[%emt 0:01:07]} 12. e4 {[%emt 0:01:33]} Ne5 {[%emt 0:00:52]} 13. Qc2 {[%emt 0:00:23]} Nh5 {[%emt 0:00:44]} 14. h3 {[%emt 0:01:09]} g5 {[%emt 0:01:25]} 15. Re1 {[%emt 0:01:34]} h6 {[%emt 0:00:20]} 16. Nd1 {[%emt 0:01:11]} Bd7 {[%emt 0:02:33]} 17. Ne3 {[%emt 0:00:19]} Qc7 {[%emt 0:00:03]} 18. Nf5 {[%emt 0:00:49]} Bxf5 {[%emt 0:00:39]} 19. exf5 {[%emt 0:00:02]} b5 {[%emt 0:00:32]} 20. axb5 {[%emt 0:00:09]} axb5 {[%emt 0:00:01]} 21. Rxa8 {[%emt 0:00:01]} Rxa8 {[%emt 0:00:01]} 22. Qd1 {[%emt 0:01:47]} Nf6 {[%emt 0:00:07]} 23. Nf3 {[%emt 0:00:16]} Nfd7 {[%emt 0:00:47]} 24. Qc2 {[%emt 0:00:15]} c4 {[%emt 0:00:28]} 25. Be3 {[%emt 0:00:12]} Nd3 {[%emt 0:00:08]} 26. Rb1 {[%emt 0:00:01]} N7c5 {[%emt 0:00:09]} 27. b3 {[%emt 0:00:06]} cxb3 {[%emt 0:00:05]} 28. Rxb3 {[%emt 0:00:09]} Ra1+ {[%emt 0:00:40]} 29. Rb1 {[%emt 0:00:02]} Qa5 {[%emt 0:00:05]} 30. Rxa1 {[%emt 0:00:08]} Qxa1+ {[%emt 0:00:01]} 31. Kh2 {[%emt 0:00:00]} b4 {[%emt 0:00:04]} 32. Nd2 {[%emt 0:00:06]} Bd4 {[%emt 0:00:25]} 33. Nb3 {[%emt 0:00:09]} Nxb3 {[%emt 0:00:10]} 34. Qxb3 {[%emt 0:00:05]} Bxe3 {[%emt 0:00:03]} 35. Qxd3 {[%emt 0:00:03]} Bxf2 {[%emt 0:00:07]} 36. h4 {[%emt 0:00:05]} gxh4 {[%emt 0:00:15]} 37. gxh4 {[%emt 0:00:02]} Qe5+ {[%emt 0:00:02]} 38. Kh3 {[%emt 0:00:08]} Qf4 {[%emt 0:00:30]} 39. Be4 {[%emt 0:00:10]} Qxh4+ {[%emt 0:00:04]} 40. Kg2 {[%emt 0:00:01]} Bc5 {[%emt 0:00:04]} 41. Qf3 {[%emt 0:00:08]} Qg5+ {[%emt 0:00:07]} 42. Kf1 {[%emt 0:00:02]} Qc1+ {[%emt 0:00:13]} 43. Kg2 {[%emt 0:00:01]} Qd2+ {[%emt 0:00:02]} 44. Kf1 {[%emt 0:00:04]} Qd4 {[%emt 0:00:04]} 45. Qg2+ {[%emt 0:00:04]} Qg7 {[%emt 0:00:02]} 46. Qf3 {[%emt 0:00:09]} Qg1+ {[%emt 0:00:01]} 47. Ke2 {[%emt 0:00:00]} Qh2+ {[%emt 0:00:02]} 48. Kd3 {[%emt 0:00:02]} Qb2 {[%emt 0:00:07]} 49. Qg3+ {[%emt 0:00:14]} Qg7 {[%emt 0:00:01]} 50. Qh4 {[%emt 0:00:07]} Qg5 {[%emt 0:00:20]} 51. Qh3 {[%emt 0:00:07]} Qc1 {[%emt 0:00:10]} 52. Qg4+ {[%emt 0:00:02]} Kh8 {[%emt 0:00:01]} 53. f6 {[%emt 0:00:07]} Qg5 {[%emt 0:00:05]} 54. Qc8+ {[%emt 0:00:02]} Qg8 {[%emt 0:00:00]} 55. Qf5 {[%emt 0:00:07]} b3 {[%emt 0:00:08]} 56. Kc3 {[%emt 0:00:05]} Qg3+ {[%emt 0:00:02]} 57. Kc4 {[%emt 0:00:04]} Qg8 {[%emt 0:00:13]} 58. Kxb3 {[%emt 0:00:05]} Bd4 {[%emt 0:00:06]} 59. Qh5 {[%emt 0:00:04]} Qg5 {[%emt 0:00:03]} 60. Qxf7 {[%emt 0:00:05]} Qe3+ {[%emt 0:00:01]} 61. Ka4 {[%emt 0:00:05]} Qxe4 {[%emt 0:00:10]} 62. Qg7# {[%emt 0:00:02]} 1-0

[Event "3rd FIDE WCCC Rapid U12 2019"]
[Site "Minsk"]
[Date "2019.08.17"]
[Round "6.5"]
[White "Saveljev, Ivan"]
[Black "Sahib Singh"]
[Result "1-0"]
[ECO "C02"]
[WhiteElo "2040"]
[BlackElo "1556"]
[Annotator "NA"]
[PlyCount "173"]
[EventDate "2019.08.16"]
[EventType "swiss"]
[EventCountry "BLR"]
[SourceTitle "playchess.com"]
[Source "ChessBase"]
[SourceQuality "1"]
[TimeControl "600+5"]

1. e4 {[%emt 0:00:00]} e6 {[%emt 0:00:00]} 2. d4 {[%emt 0:00:00]} d5 {[%emt 0:00:00]} 3. e5 {[%emt 0:00:00]} c5 {[%emt 0:00:00]} 4. c3 Nc6 5. Nf3 Qb6 6. a3 {[%emt 0:00:03]} a5 {[%emt 0:00:00]} 7. Bd3 {[%emt 0:00:32]} cxd4 {[%emt 0:00:09]} 8. cxd4 {[%emt 0:00:01]} Nge7 {[%emt 0:00:17]} 9. O-O {[%emt 0:00:18]} Nf5 {[%emt 0:00:02]} 10. Bxf5 {[%emt 0:01:05]} exf5 {[%emt 0:00:01]} 11. Nc3 {[%emt 0:00:54]} Be6 {[%emt 0:00:01]} 12. Qd3 {[%emt 0:01:04]} Be7 {[%emt 0:00:11]} 13. Be3 {[%emt 0:00:38]} O-O {[%emt 0:00:07]} 14. Na4 {[%emt 0:00:27]} Qd8 {[%emt 0:00:39]} 15. Rac1 {[%emt 0:00:16]} Rc8 {[%emt 0:00:23]} 16. Qb5 {[%emt 0:00:23]} Rc7 {[%emt 0:01:10]} 17. Nb6 {[%emt 0:00:53]} Na7 {[%emt 0:00:29]} 18. Qb3 {[%emt 0:01:12]} Rc6 {[%emt 0:00:44]} 19. Na4 {[%emt 0:01:12]} Qc7 {[%emt 0:00:40]} 20. Rxc6 bxc6 {[%emt 0:00:02]} 21. Qc2 {[%emt 0:00:36]} h6 {[%emt 0:00:38]} 22. Rc1 {[%emt 0:00:26]} g5 {[%emt 0:00:08]} 23. g3 {[%emt 0:00:04]} f6 {[%emt 0:00:18]} 24. Nc5 Bxc5 {[%emt 0:00:02]} 25. Qxc5 {[%emt 0:00:34]} Qg7 {[%emt 0:00:52]} 26. Qc3 {[%emt 0:01:15]} f4 {[%emt 0:00:26]} 27. Bd2 {[%emt 0:00:05]} Bg4 {[%emt 0:00:14]} 28. exf6 {[%emt 0:00:07]} Rxf6 {[%emt 0:00:03]} 29. Ne5 {[%emt 0:00:01]} Bh3 {[%emt 0:00:17]} 30. g4 {[%emt 0:00:11]} f3 {[%emt 0:00:01]} 31. Nxf3 {[%emt 0:00:09]} Bxg4 {[%emt 0:00:02]} 32. Ne5 {[%emt 0:00:01]} Bh5 {[%emt 0:00:10]} 33. Qg3 {[%emt 0:00:03]} Kh7 {[%emt 0:00:13]} 34. Bxa5 {[%emt 0:00:05]} Nb5 {[%emt 0:00:02]} 35. Bc3 {[%emt 0:00:05]} Nd6 {[%emt 0:00:03]} 36. f3 {[%emt 0:00:05]} Nf5 {[%emt 0:00:04]} 37. Qh3 {[%emt 0:00:04]} Nh4 {[%emt 0:00:02]} 38. Rf1 {[%emt 0:00:02]} Qf8 {[%emt 0:00:21]} 39. Nd7 {[%emt 0:00:03]} Qd6 {[%emt 0:00:17]} 40. Nxf6+ {[%emt 0:00:01]} Qxf6 {[%emt 0:00:01]} 41. Qd7+ {[%emt 0:00:05]} Bf7 {[%emt 0:00:08]} 42. Qh3 {[%emt 0:00:09]} Bh5 {[%emt 0:00:10]} 43. Qd7+ {[%emt 0:00:13]} Bf7 {[%emt 0:00:01]} 44. Qg4 {[%emt 0:00:04]} Be6 {[%emt 0:00:05]} 45. Qg3 {[%emt 0:00:01]} Ng6 {[%emt 0:00:10]} 46. Bd2 {[%emt 0:00:03]} Qxd4+ {[%emt 0:00:01]} 47. Qf2 {[%emt 0:00:01]} Qf6 {[%emt 0:00:06]} 48. f4 {[%emt 0:00:03]} Qf5 {[%emt 0:00:31]} 49. fxg5 {[%emt 0:00:10]} Qg4+ {[%emt 0:00:00]} 50. Qg3 {[%emt 0:00:02]} Qd4+ {[%emt 0:00:02]} 51. Be3 {[%emt 0:00:01]} Qg4 {[%emt 0:00:06]} 52. Qxg4 {[%emt 0:00:02]} Bxg4 {[%emt 0:00:01]} 53. gxh6 {[%emt 0:00:03]} Ne5 {[%emt 0:00:01]} 54. Kg2 {[%emt 0:00:06]} Nc4 {[%emt 0:00:02]} 55. Bc1 {[%emt 0:00:06]} Kg6 {[%emt 0:00:07]} 56. Kg3 {[%emt 0:00:06]} Be6 {[%emt 0:00:08]} 57. b3 {[%emt 0:00:02]} Nd6 {[%emt 0:00:02]} 58. h4 {[%emt 0:00:22]} Nf5+ {[%emt 0:00:03]} 59. Kf4 {[%emt 0:00:01]} Nxh4 {[%emt 0:00:16]} 60. Ke5 {[%emt 0:00:05]} Bh3 {[%emt 0:00:13]} 61. h7 {[%emt 0:00:11]} Kg7 {[%emt 0:00:26]} 62. h8=Q+ {[%emt 0:00:05]} Kxh8 {[%emt 0:00:01]} 63. Rh1 {[%emt 0:00:01]} Nf3+ {[%emt 0:00:09]} 64. Kf4 {[%emt 0:00:01]} Kg7 {[%emt 0:00:05]} 65. Kxf3 {[%emt 0:00:03]} Bf5 {[%emt 0:00:00]} 66. Bb2+ {[%emt 0:00:00]} Kf7 {[%emt 0:00:01]} 67. Kf4 {[%emt 0:00:02]} Be4 {[%emt 0:00:03]} 68. Re1 {[%emt 0:00:01]} Bg6 {[%emt 0:00:01]} 69. b4 {[%emt 0:00:01]} Bh5 {[%emt 0:00:02]} 70. Rc1 {[%emt 0:00:03]} Ke6 {[%emt 0:00:01]} 71. Rxc6+ {[%emt 0:00:02]} Kd7 {[%emt 0:00:01]} 72. Rh6 {[%emt 0:00:02]} Be8 {[%emt 0:00:01]} 73. Ke5 {[%emt 0:00:01]} Kc8 {[%emt 0:00:01]} 74. Kxd5 {[%emt 0:00:03]} Bf7+ {[%emt 0:00:01]} 75. Kd6 {[%emt 0:00:02]} Bc4 {[%emt 0:00:01]} 76. a4 {[%emt 0:00:06]} Kb7 {[%emt 0:00:00]} 77. Kc5 {[%emt 0:00:02]} Bf7 {[%emt 0:00:02]} 78. Rh7 {[%emt 0:00:02]} Ka6 {[%emt 0:00:01]} 79. b5+ {[%emt 0:00:02]} Ka5 {[%emt 0:00:01]} 80. Rxf7 {[%emt 0:00:03]} Kxa4 {[%emt 0:00:01]} 81. b6 {[%emt 0:00:01]} Kb3 {[%emt 0:00:01]} 82. b7 {[%emt 0:00:02]} Kxb2 {[%emt 0:00:02]} 83. b8=Q+ {[%emt 0:00:02]} Kc3 {[%emt 0:00:01]} 84. Qb4+ {[%emt 0:00:01]} Kd3 85. Qd4+ {[%emt 0:00:03]} Ke2 {[%emt 0:00:03]} 86. Rf2+ {[%emt 0:00:01]} Ke1 {[%emt 0:00:00]} 87. Qd2# {[%emt 0:00:01]} 1-0

[Event "3rd FIDE WCCC Rapid U12 2019"]
[Site "Minsk"]
[Date "2019.08.17"]
[Round "6.6"]
[White "Sidletskyi, Ivan"]
[Black "Sapenov, Daniyal"]
[Result "1-0"]
[ECO "C26"]
[WhiteElo "1986"]
[BlackElo "1612"]
[Annotator "NA"]
[PlyCount "105"]
[EventDate "2019.08.16"]
[EventType "swiss"]
[EventCountry "BLR"]
[SourceTitle "playchess.com"]
[Source "ChessBase"]
[SourceQuality "1"]
[TimeControl "600+5"]

1. e4 {[%emt 0:00:00]} e5 {[%emt 0:00:00]} 2. Bc4 {[%emt 0:00:00]} Nf6 {[%emt 0:00:00]} 3. Nc3 {[%emt 0:00:01]} Bc5 {[%emt 0:00:05]} 4. d3 {[%emt 0:00:03]} d6 {[%emt 0:00:04]} 5. Be3 {[%emt 0:00:12]} Bb6 {[%emt 0:00:15]} 6. Bxb6 {[%emt 0:00:03]} axb6 {[%emt 0:00:01]} 7. Nge2 {[%emt 0:00:02]} O-O {[%emt 0:00:22]} 8. O-O {[%emt 0:00:11]} Be6 {[%emt 0:00:06]} 9. f4 {[%emt 0:00:37]} Bxc4 {[%emt 0:00:06]} 10. dxc4 {[%emt 0:00:03]} exf4 {[%emt 0:00:13]} 11. Rxf4 {[%emt 0:00:14]} Nbd7 {[%emt 0:00:08]} 12. Ng3 {[%emt 0:00:23]} Ne5 {[%emt 0:00:36]} 13. Qe2 {[%emt 0:00:04]} Ng6 {[%emt 0:00:44]} 14. Rf2 {[%emt 0:00:36]} Nd7 {[%emt 0:00:18]} 15. Raf1 {[%emt 0:00:36]} Nde5 {[%emt 0:00:08]} 16. b3 {[%emt 0:00:40]} Qd7 {[%emt 0:00:57]} 17. Nf5 {[%emt 0:00:18]} f6 {[%emt 0:00:23]} 18. h4 {[%emt 0:00:28]} Ne7 {[%emt 0:00:10]} 19. Nxe7+ {[%emt 0:00:33]} Qxe7 {[%emt 0:00:02]} 20. h5 {[%emt 0:00:42]} h6 {[%emt 0:00:03]} 21. Rf5 {[%emt 0:00:29]} Qd7 {[%emt 0:00:37]} 22. Qf2 {[%emt 0:00:25]} Kh8 {[%emt 0:00:18]} 23. a4 {[%emt 0:00:17]} Rae8 {[%emt 0:00:16]} 24. Nd5 {[%emt 0:00:31]} Rf7 {[%emt 0:01:03]} 25. Qg3 {[%emt 0:00:46]} Rg8 {[%emt 0:00:31]} 26. Qe3 {[%emt 0:00:47]} Rgf8 {[%emt 0:01:53]} 27. Nf4 {[%emt 0:00:12]} Kg8 {[%emt 0:01:22]} 28. Qg3 {[%emt 0:00:15]} Kh8 {[%emt 0:00:39]} 29. Kh1 {[%emt 0:00:51]} Re7 {[%emt 0:00:23]} 30. Nd5 {[%emt 0:00:03]} Ref7 {[%emt 0:00:02]} 31. R5f4 {[%emt 0:00:10]} Kh7 {[%emt 0:00:20]} 32. Rf5 {[%emt 0:00:19]} Kh8 {[%emt 0:00:02]} 33. Qe3 {[%emt 0:00:12]} Kh7 {[%emt 0:00:08]} 34. Qe2 {[%emt 0:00:12]} Kh8 {[%emt 0:00:04]} 35. Ra1 {[%emt 0:00:24]} Ra8 {[%emt 0:00:09]} 36. c3 {[%emt 0:00:16]} Qd8 {[%emt 0:00:07]} 37. b4 {[%emt 0:00:16]} c6 {[%emt 0:00:01]} 38. Nf4 {[%emt 0:00:03]} Qe7 {[%emt 0:00:07]} 39. Rxe5 {[%emt 0:00:07]} Qxe5 {[%emt 0:00:11]} 40. Ng6+ {[%emt 0:00:01]} Kh7 {[%emt 0:00:01]} 41. Nxe5 {[%emt 0:00:01]} fxe5 {[%emt 0:00:01]} 42. Rf1 {[%emt 0:00:05]} Raf8 {[%emt 0:00:00]} 43. Rxf7 {[%emt 0:00:03]} Rxf7 {[%emt 0:00:01]} 44. c5 {[%emt 0:00:09]} dxc5 {[%emt 0:00:04]} 45. bxc5 {[%emt 0:00:01]} bxc5 {[%emt 0:00:00]} 46. Qc4 {[%emt 0:00:04]} Rf4 {[%emt 0:00:02]} 47. g3 {[%emt 0:00:11]} Rg4 {[%emt 0:00:08]} 48. Kg2 {[%emt 0:00:03]} b6 {[%emt 0:00:10]} 49. Kf3 {[%emt 0:00:02]} Rg5 {[%emt 0:00:03]} 50. g4 {[%emt 0:00:01]} g6 {[%emt 0:00:01]} 51. Qf7+ {[%emt 0:00:03]} Kh8 {[%emt 0:00:02]} 52. hxg6 {[%emt 0:00:02]} h5 {[%emt 0:00:00]} 53. Qf8# {[%emt 0:00:02]} 1-0

[Event "3rd FIDE WCCC Rapid U12 2019"]
[Site "Minsk"]
[Date "2019.08.17"]
[Round "7.1"]
[White "Cherniaiev, Tykhon"]
[Black "Strybuk, Artsiom I"]
[Result "1/2-1/2"]
[ECO "C54"]
[WhiteElo "2112"]
[BlackElo "2200"]
[Annotator "ChessBase"]
[PlyCount "50"]
[EventDate "2019.08.16"]
[EventType "swiss"]
[EventCountry "BLR"]
[SourceTitle "playchess.com"]
[Source "ChessBase"]
[SourceQuality "1"]
[TimeControl "600+5"]

1. e4 {[%emt 0:00:00]} e5 {[%emt 0:00:00]} 2. Nf3 {[%emt 0:00:01]} Nc6 {[%emt 0:00:00]} 3. Bc4 {[%emt 0:00:06]} Bc5 {[%emt 0:00:00]} 4. c3 {[%emt 0:00:04]} Nf6 {[%emt 0:00:00]} 5. d3 {[%emt 0:00:05]} O-O {[%emt 0:00:03]} 6. O-O {[%emt 0:00:03]} d6 {[%emt 0:00:02]} 7. Bg5 {[%emt 0:00:10]} h6 {[%emt 0:00:33]} 8. Bh4 {[%emt 0:00:02]} g5 {[%emt 0:00:35]} 9. Bg3 {[%emt 0:00:05]} Bb6 {[%emt 0:00:54]} 10. Nbd2 {[%emt 0:00:29]} Bg4 {[%emt 0:00:23]} 11. Re1 {[%emt 0:01:47]} Nh5 {[%emt 0:00:57]} 12. Nf1 {[%emt 0:00:40]} Qf6 {[%emt 0:00:19]} 13. Ne3 {[%emt 0:00:57]} Bxf3 {[%emt 0:00:29]} 14. Qxf3 {[%emt 0:00:05]} Qxf3 {[%emt 0:00:19]} 15. gxf3 {[%emt 0:00:03]} Ne7 {[%emt 0:00:32]} 16. Rad1 {[%emt 0:00:57]} Kg7 {[%emt 0:00:38]} 17. d4 {[%emt 0:00:15]} f6 {[%emt 0:00:29]} 18. Be6 {[%emt 0:00:49]} Rh8 {[%emt 0:00:29]} 19. Bg4 {[%emt 0:00:29]} Kg6 {[%emt 0:01:22]} 20. Nf5 {[%emt 0:00:08]} Rh7 {[%emt 0:01:01]} 21. Kg2 {[%emt 0:00:59]} Nxg3 {[%emt 0:00:04]} 22. Nxe7+ {[%emt 0:00:07]} Rxe7 {[%emt 0:00:07]} 23. hxg3 {[%emt 0:00:08]} Kg7 {[%emt 0:00:25]} 24. Bf5 {[%emt 0:00:21]} Rd8 {[%emt 0:00:04]} 25. f4 {[%emt 0:00:24]} exf4 {[%emt 0:00:37]} 1/2-1/2